[Event "Croatian 1A League 2022"]
[Site "Porec"]
[Date "2022.09.30"]
[Round "7.2"]
[White "Banusz, Tamas"]
[Black "Saric, Ibro"]
[Result "1/2-1/2"]
[ECO "D78"]
[WhiteElo "2622"]
[BlackElo "2542"]
[Annotator "TA"]
[PlyCount "101"]
[EventDate "2022.09.24"]
[EventType "team-tourn"]
[EventCountry "CRO"]
[SourceTitle "playchess.com"]
[Source "ChessBase"]
[SourceQuality "1"]
[TimeControl "40/5400+30:1800+30"]

{[%evp 14,101,37,35,40,37,39,38,42,25,39,13,33,21,44,22,48,41,50,45,47,51,53,65,58,56,61,53,54,62,81,31,42,39,37,35,27,26,39,40,48,59,40,38,41,7,7,13,6,0,0,0,0,0,0,0,0,-57,-63,-122,-79,-99,-55,-58,-74,-122,-103,-66,-81,-286,-285,-268,-195,-159,-177,-179,-12,-18,0,0,0,-8,-8,-8,0,0,0,0,0,0]} 1. Nf3 {[%emt 0:00:12]} Nf6 {[%emt 0:01:06]} 2. g3 {[%emt 0:03:40]} d5 {[%emt 0:01:48]} 3. Bg2 {[%emt 0:00:09]} c6 {[%emt 0:00:40]} 4. O-O {[%emt 0:00:21]} g6 {[%emt 0:00:47]} 5. b3 {[%emt 0:01:45]} Bg7 {[%emt 0:00:06]} 6. Bb2 {[%emt 0:00:05]} O-O {[%emt 0:00:08]} 7. c4 {[%emt 0:00:24]} Bg4 {[%emt 0:00:56]} 8. d4 {[%emt 0:01:01]} Bxf3 {[%emt 0:06:54] D78: Fianchetto Grünfeld: 6 0-0 c6.} 9. Bxf3 {[%emt 0:00:05]} e6 {[%emt 0:00:54] 9...Nbd7 is vanishing.} 10. Qc2 {[%emt 0:04:44]} Nbd7 {[%emt 0:03:07] White is slightly better.} 11. e3 {[%emt 0:05:14]} Re8 {[%emt 0:00:53] [#]} 12. Rd1 $146 {[%emt 0:02:17]} ({Predecessor:} 12. Nd2 Rc8 13. Rfc1 h5 14. e4 dxe4 15. Nxe4 Nxe4 16. Bxe4 Nf6 17. Bf3 Re7 18. Re1 {0-1 (72) Schneider,A (2064)-Jeske,E (2193) Niederhausen 2016}) 12... Rc8 {[%emt 0:00:57]} 13. Nc3 {[%emt 0:03:54]} a6 {[%emt 0:04:30]} 14. Bg2 {[%emt 0:04:38]} Qe7 {[%emt 0:03:21]} 15. Rac1 {[%emt 0:04:37]} Rcd8 {[%emt 0:02:56]} 16. Nb1 {[%emt 0:03:56]} Qd6 {[%emt 0:01:56]} 17. Nd2 {[%emt 0:01:47]} Qb8 {[%emt 0:03:26]} 18. a4 {[%emt 0:08:47]} Bf8 {[%emt 0:26:30]} 19. Bc3 {[%emt 0:02:47]} b5 {[%emt 0:02:08]} 20. axb5 {[%emt 0:15:47]} axb5 {[%emt 0:00:34]} 21. Ra1 {[%emt 0:03:24]} Qb7 {[%emt 0:02:16]} 22. Ra2 {[%emt 0:01:25]} (22. e4 $16) 22... Ra8 $14 {[%emt 0:03:00]} 23. Rda1 {[%emt 0:00:21]} b4 {[%emt 0:08:32]} 24. Bb2 {[%emt 0:01:12]} Rxa2 {[%emt 0:00:19]} 25. Rxa2 {[%emt 0:00:05]} Ra8 {[%emt 0:00:43]} 26. Qb1 {[%emt 0:02:30]} Ne8 {[%emt 0:01:32]} 27. Qa1 {[%emt 0:03:16]} Rxa2 {[%emt 0:01:00]} 28. Qxa2 {[%emt 0:00:01]} Nc7 {[%emt 0:00:37]} 29. e4 {[%emt 0:05:21]} Bh6 $1 {[%emt 0:02:31]} 30. f4 {[%emt 0:02:57]} g5 {[%emt 0:03:47]} 31. fxg5 {[%emt 0:01:51]} Bxg5 {[%emt 0:00:07]} 32. Nf1 {[%emt 0:03:41]} dxc4 {[%emt 0:01:23]} 33. bxc4 {[%emt 0:00:06]} e5 {[%emt 0:00:39]} 34. Bh3 {[%emt 0:02:44]} Ne6 {[%emt 0:07:26]} 35. Bxe6 {[%emt 0:04:59]} (35. d5 $1 $11 Nd4 36. Bxd7 Qxd7 37. Qa8+ Qd8 38. Qxd8+ Bxd8 39. c5) 35... fxe6 $15 {[%emt 0:00:06]} 36. Qa5 {[%emt 0:00:14]} (36. d5 $15) 36... Kf7 {[%emt 0:02:32]} 37. Kg2 {[%emt 0:02:54]} Qb6 {[%emt 0:06:20]} 38. Qa8 {[%emt 0:00:03]} exd4 {[%emt 0:01:21]} 39. Qh8 {[%emt 0:00:43][%csl LRd4,LRh7] [#]} Bf6 $1 {[%emt 0:00:39]} ({But not} 39... Nf6 40. e5 Ng8 41. Qxh7+ (41. h4 Bh6 $11) 41... Kf8 42. Qd3 $16 (42. Qg6 Bd8 $14)) 40. Qxh7+ {[%emt 0:00:00]} Ke8 {[%emt 0:00:00]} 41. Qg8+ $2 {[%emt 0:18:29]} (41. e5 $17 Bxe5 42. Bc1) 41... Ke7 $19 {[%emt 0:04:54]} 42. Qh7+ {[%emt 0:00:05]} Kd8 {[%emt 0:03:46] ...Qa5 is the strong threat.} 43. Qg8+ {[%emt 0:00:23]} Kc7 {[%emt 0:03:37]} 44. Qxe6 {[%emt 0:00:04] [#]} Qa6 $2 {[%emt 0:01:03]} ({Not} 44... c5 45. Qd5) ({Better is} 44... b3 $1 $19 {Hoping for ...Qa6.} 45. Qf5 Qb4 46. Qf4+ Be5) 45. Bc1 {[%emt 0:01:52] The position is equal.} Qa2+ {[%emt 0:01:36]} 46. Kg1 {[%emt 0:03:16] Black must now prevent Bf4+.} Be5 {[%emt 0:01:27] Strongly threatening ...b3.} 47. Bf4 {[%emt 0:00:04]} Bxf4 {[%emt 0:05:44]} 48. gxf4 {[%emt 0:00:01] And now e5 would win.} d3 {[%emt 0:07:56]} 49. e5 {[%emt 0:01:34] aiming for Qd6+.} Qa7+ {[%emt 0:00:06]} 50. Kg2 $1 {[%emt 0:00:59] Threatens to win with Qd6+. The board is on fire.} Qd4 {[%emt 0:00:07] Inhibits Qd6+.} 51. Kf3 {[%emt 0:02:20] Weighted Error Value: White=0.13 (very precise) /Black=0.15 (very precise)} 1/2-1/2

[Event "Croatian 1A League 2022"]
[Site "Porec"]
[Date "2022.09.30"]
[Round "7.3"]
[White "Saric, Ante"]
[Black "Balogh, Csaba"]
[Result "1/2-1/2"]
[ECO "D23"]
[WhiteElo "2510"]
[BlackElo "2583"]
[Annotator "TA"]
[PlyCount "36"]
[EventDate "2022.09.24"]
[EventType "team-tourn"]
[EventCountry "CRO"]
[SourceTitle "playchess.com"]
[Source "ChessBase"]
[SourceQuality "1"]
[TimeControl "40/5400+30:1800+30"]

{[%evp 13,23,0,10,5,16,11,18,2,0,0,19,14]} 1. d4 {[%emt 0:00:48]} d5 {[%emt 0:00:36]} 2. Nf3 {[%emt 0:00:15]} Nf6 {[%emt 0:00:11]} 3. c4 {[%emt 0:00:08]} c6 {[%emt 0:00:23]} 4. Qb3 {[%emt 0:00:11]} dxc4 {[%emt 0:02:29]} 5. Qxc4 {[%emt 0:00:08]} Bf5 {[%emt 0:00:29]} 6. g3 {[%emt 0:00:27]} e6 {[%emt 0:00:29]} 7. Bg2 {[%emt 0:00:06]} Be7 {[%emt 0:00:19] The position is equal.} 8. O-O {[%emt 0:00:26] D23: Queen's Gambit Accepted: 3 Nf3 Nf6 sidelines.} O-O {[%emt 0:00:14]} 9. e3 {[%emt 0:00:45]} Nbd7 {[%emt 0:00:25]} 10. Rd1 {[%emt 0:00:19]} Qc7 {[%emt 0:02:12] was the old line (10...Rc8).} 11. Nc3 {[%emt 0:02:15]} Ne4 {[%emt 0:02:22]} 12. Nd2 {[%emt 0:05:14] [#] An interesting draw.  Weighted Error Value: White=0.04 (flawless) /Black=0.07 (flawless) was the old line (12.Qe2).} {Predecessor:} Nxc3 $146 13. Qxc3 Bg6 14. Nc4 Nf6 15. Ne5 Bh5 16. f3 c5 17. g4 Bg6 18. e4 Rac8 {½-½ (61) Lenderman,A (2627)-McShane,L (2687) London 2015} 1/2-1/2

[Event "Croatian 1A League 2022"]
[Site "Porec"]
[Date "2022.09.30"]
[Round "7.4"]
[White "Kuljasevic, Davorin"]
[Black "Plenca, Julijan"]
[Result "1/2-1/2"]
[ECO "D45"]
[WhiteElo "2560"]
[BlackElo "2447"]
[Annotator "TA"]
[PlyCount "52"]
[EventDate "2022.09.24"]
[EventType "team-tourn"]
[EventCountry "CRO"]
[SourceTitle "playchess.com"]
[Source "ChessBase"]
[SourceQuality "1"]
[TimeControl "40/5400+30:1800+30"]

{[%evp 23,37,0,0,0,0,0,0,0,10,15,14,12,0,0,0,0]} 1. d4 {[%emt 0:00:03]} d5 {[%emt 0:00:04]} 2. Nf3 {[%emt 0:00:14]} Nf6 {[%emt 0:02:10]} 3. c4 {[%emt 0:00:15]} e6 {[%emt 0:00:04]} 4. Nc3 {[%emt 0:00:23]} c6 {[%emt 0:00:05]} 5. e3 {[%emt 0:00:19]} Nbd7 {[%emt 0:00:11]} 6. Qc2 {[%emt 0:00:41]} Bd6 {[%emt 0:00:10]} 7. b3 {[%emt 0:00:54]} O-O {[%emt 0:00:16]} 8. Be2 {[%emt 0:00:34]} b6 {[%emt 0:00:41]} 9. O-O {[%emt 0:00:16]} Bb7 {[%emt 0:00:16]} 10. Bb2 {[%emt 0:00:15]} Qe7 {[%emt 0:00:05]} 11. Rad1 {[%emt 0:01:10]} Rad8 {[%emt 0:00:27]} 12. Rfe1 {[%emt 0:00:59]} Rfe8 {[%emt 0:02:50] The position is equal.} 13. Bf1 {[%emt 0:05:52] D45: Semi-Slav: 5 e3.} e5 {[%emt 0:01:43]} 14. dxe5 {[%emt 0:01:02]} Nxe5 {[%emt 0:00:05]} 15. Nd4 {[%emt 0:01:01] Nowadays more popular than 15.Nxe5.} dxc4 {[%emt 0:02:14]} 16. Nf5 {[%emt 0:02:55]} Qe6 {[%emt 0:00:14][%cal Oe5d3] [#] And now ...Nd3! would win.} 17. Nxd6 {[%emt 0:00:22]} Rxd6 {[%emt 0:00:05]} 18. Rxd6 {[%emt 0:01:02]} Qxd6 {[%emt 0:00:05]} 19. Rd1 {[%emt 0:14:55] [#] An interesting draw.  Weighted Error Value: White=0.00 (flawless) /Black=0.02 (flawless)} {Predecessor:} cxb3 $146 20. axb3 Qe7 21. Ne4 Nd5 22. Ng3 Bc8 23. e4 Nf4 24. Qc3 Qg5 25. Bc1 h5 26. Ne2 Qxg2+ {0-1 (26) Smirnov,A (2600)-Duda,J (2750) Chennai 2022} 1/2-1/2

[Event "Croatian 1A League 2022"]
[Site "Porec"]
[Date "2022.09.30"]
[Round "7.5"]
[White "Plenca, Jadranko"]
[Black "Jovanic, Ognjen"]
[Result "1/2-1/2"]
[ECO "C66"]
[WhiteElo "2412"]
[BlackElo "2507"]
[Annotator "TA"]
[PlyCount "129"]
[EventDate "2022.09.24"]
[EventType "team-tourn"]
[EventCountry "CRO"]
[SourceTitle "playchess.com"]
[Source "ChessBase"]
[SourceQuality "1"]
[TimeControl "40/5400+30:1800+30"]

{[%evp 15,129,25,35,-64,-71,-60,-70,-97,-69,-75,-86,-75,-63,-49,-64,-50,-57,-88,-81,-94,-81,-84,-75,-85,-89,-157,-154,-150,-154,-139,-163,-156,-154,-144,-139,-158,-154,-158,-119,-131,-127,-132,-131,-132,-133,-127,-131,-183,-94,-94,-47,-47,-31,-38,-25,-94,-94,-107,-99,-123,-123,-123,-102,-102,-94,-94,-94,-94,-94,-94,-94,-94,-94,-94,-94,-94,-94,-94,-94,-94,-94,-94,-94,-94,-94,-94,-94,-94,-91,-91,-91,-91,0,0,0,0,0,0,0,0,0,0,0,0,0,0,0,0,0,0,0,0,0,0,0,0]} 1. e4 {[%emt 0:00:03]} e5 {[%emt 0:00:35]} 2. Nf3 {[%emt 0:00:38]} Nc6 {[%emt 0:00:49]} 3. Bb5 {[%emt 0:01:02]} Nf6 {[%emt 0:00:55]} 4. d3 {[%emt 0:00:27]} d6 {[%emt 0:01:40]} 5. c3 {[%emt 0:02:20]} g6 {[%emt 0:01:37]} 6. O-O {[%emt 0:02:08]} Bg7 {[%emt 0:01:00]} 7. Re1 {[%emt 0:02:58]} O-O {[%emt 0:00:26]} 8. Nbd2 {[%emt 0:03:54]} Bd7 {[%emt 0:04:50][%cal Bc8d7,Bd7b5,Bb5a6][%mdl 32]} 9. d4 {[%emt 0:08:58] [#] C66: Ruy Lopez: Steinitz Defence.} ({Better is} 9. Ba4 $14) 9... Nxd4 $1 $15 {[%emt 0:12:05]} 10. cxd4 {[%emt 0:05:31]} Bxb5 {[%emt 0:00:07]} 11. Qb3 {[%emt 0:06:27] Black is slightly better.} Qe8 {[%emt 0:03:32]} 12. a4 {[%emt 0:05:05]} Ba6 {[%emt 0:00:42]} 13. dxe5 {[%emt 0:00:46]} dxe5 {[%emt 0:00:37]} 14. Qc3 {[%emt 0:00:38][%csl LRc7,LRe5]} c6 {[%emt 0:12:25]} 15. b4 {[%emt 0:04:21] [#]} Nh5 $146 {[%emt 0:08:18][%cal Bf6h5,Bh5f4,Bf4d3][%mdl 32]} ({Predecessor:} 15... Qe6 16. Rb1 b6 17. Qxe5 Qxe5 18. Nxe5 Rfe8 19. Bb2 Nh5 20. Ndf3 Nf4 21. Re3 c5 22. bxc5 bxc5 {0-1 (28) Mosadeghpour,M (2518)-Ponkratov,P (2605) Amol 2018}) 16. Nb3 {[%emt 0:04:23]} b6 $1 {[%emt 0:03:33] Against Nc5} 17. Be3 {[%emt 0:02:23]} Qe6 {[%emt 0:04:21]} 18. a5 {[%emt 0:09:43]} Bb5 {[%emt 0:09:54]} 19. axb6 {[%emt 0:13:57]} axb6 {[%emt 0:00:07]} 20. Bxb6 {[%emt 0:00:16]} (20. Rxa8 $142 Rxa8 21. Nbd2) 20... Nf4 $1 $17 {[%emt 0:00:19] And now ...Qg4 would win.} 21. Rxa8 {[%emt 0:14:32]} Rxa8 {[%emt 0:00:03]} 22. Nc1 {[%emt 0:00:05]} Qg4 {[%emt 0:07:51][%csl Gf4][%cal Rg4g2] Against h3} 23. g3 {[%emt 0:00:09] [#]} Nd3 $1 {[%emt 0:02:31][%mdl 512]} 24. Nxd3 {[%emt 0:01:46]} Qxf3 {[%emt 0:00:08]} 25. Be3 {[%emt 0:08:06]} Qxe4 {[%emt 0:00:41]} 26. Nc5 {[%emt 0:00:08]} Qf3 {[%emt 0:00:49]} 27. Bd4 {[%emt 0:00:40]} Qxc3 {[%emt 0:02:47]} 28. Bxc3 {[%emt 0:00:05]} f6 {[%emt 0:00:26]} 29. f4 {[%emt 0:00:03][%cal Rf4e5]} exf4 {[%emt 0:06:31]} 30. gxf4 {[%emt 0:00:13]} Kf7 {[%emt 0:00:12] Prevents Re7+.} 31. Rd1 {[%emt 0:01:20]} (31. Ne4 $17 {is a better defense.}) 31... Ra7 {[%emt 0:02:34]} (31... Bf8 $1 $19 32. Rd7+ Be7) 32. Rd6 {[%emt 0:00:20] [#]} Re7 {[%emt 0:04:49]} (32... f5 $1 $17 33. Bxg7 Kxg7 34. Rd7+ Rxd7 35. Nxd7 Kf7) 33. Kf2 $15 {[%emt 0:00:14]} f5 {[%emt 0:02:11]} 34. Bxg7 {[%emt 0:00:29]} Kxg7 {[%emt 0:00:01][%mdl 4096] Endgame KRB-KRN} 35. Ne6+ {[%emt 0:00:09]} (35. Rd7 $1 $11 Kf7 36. Rxe7+ Kxe7 37. Ke3) 35... Kh6 $17 {[%emt 0:01:49]} 36. Nd4 {[%emt 0:00:06] [#] Black must now prevent Nxf5+.} Kh5 $1 {[%emt 0:01:02] ...Kg4 is the strong threat.} 37. Nxc6 {[%emt 0:01:17]} Bxc6 {[%emt 0:01:16]} 38. Rxc6 {[%emt 0:00:05] KR-KR} Re4 {[%emt 0:00:10] Inhibits Rc4.} 39. Kg3 {[%emt 0:01:23]} Rxb4 {[%emt 0:00:58]} 40. Rc3 {[%emt 0:00:00] Prevents Rb3.} Rb1 {[%emt 0:00:00]} 41. h3 {[%emt 0:07:56]} h6 {[%emt 0:04:51]} 42. Ra3 {[%emt 0:00:33]} Rf1 {[%emt 0:00:53]} 43. Rb3 {[%emt 0:01:59]} Rg1+ {[%emt 0:00:37]} 44. Kf2 {[%emt 0:00:29]} Ra1 {[%emt 0:00:19] Threatens to win with ...Kh4.} 45. Kg3 {[%emt 0:00:05]} Rf1 {[%emt 0:01:01]} 46. Ra3 {[%emt 0:00:14]} Rc1 {[%emt 0:05:28]} 47. Rb3 {[%emt 0:01:23]} Rc4 {[%emt 0:00:26]} 48. Ra3 {[%emt 0:00:10]} Re4 {[%emt 0:03:24]} 49. Rb3 {[%emt 0:00:08]} Re6 {[%emt 0:00:13]} 50. Ra3 {[%emt 0:00:12]} Rd6 {[%emt 0:00:22]} 51. Rb3 {[%emt 0:00:10]} g5 {[%emt 0:00:16]} 52. fxg5 {[%emt 0:04:33]} hxg5 {[%emt 0:00:20] aiming for ...f4+.} 53. Rb8 {[%emt 0:01:28]} f4+ {[%emt 0:03:19]} (53... Kg6 $17 54. Rb3 Kh5) 54. Kg2 $11 {[%emt 0:00:29] The position is equal.} Kg6 {[%emt 0:00:48]} 55. Rf8 $1 {[%emt 0:02:50]} Rd5 {[%emt 0:02:18]} 56. Kf3 {[%emt 0:02:12]} Rd3+ {[%emt 0:04:13]} 57. Kg2 {[%emt 0:00:06]} Rg3+ {[%emt 0:00:07]} 58. Kh2 {[%emt 0:00:07]} Kg7 {[%emt 0:00:06]} 59. Rf5 {[%emt 0:00:49]} Kg6 {[%emt 0:00:58]} 60. Rf8 {[%emt 0:00:07]} Re3 {[%emt 0:00:05]} 61. h4 {[%emt 0:01:05]} Rg3 {[%emt 0:03:16]} 62. hxg5 {[%emt 0:01:28]} Kxg5 {[%emt 0:00:05]} 63. Rg8+ {[%emt 0:00:07]} Kf5 {[%emt 0:00:05]} 64. Rxg3 {[%emt 0:00:04]} fxg3+ {[%emt 0:00:04]} 65. Kxg3 {[%emt 0:00:04] Black had all chances to win.  Weighted Error Value: White=0.10 (very precise) /Black=0.08 (flawless)} 1/2-1/2

[Event "Croatian 1A League 2022"]
[Site "Porec"]
[Date "2022.09.30"]
[Round "7.6"]
[White "Srbis, Jurica"]
[Black "Cotic, Borna"]
[Result "1-0"]
[ECO "B49"]
[WhiteElo "2442"]
[BlackElo "2133"]
[Annotator "TA"]
[PlyCount "83"]
[EventDate "2022.09.24"]
[EventType "team-tourn"]
[EventCountry "CRO"]
[SourceTitle "playchess.com"]
[Source "ChessBase"]
[SourceQuality "1"]
[TimeControl "40/5400+30:1800+30"]

{[%evp 28,83,29,33,27,24,39,37,72,72,72,66,77,78,89,89,89,89,89,93,114,126,189,154,183,176,192,192,197,195,194,195,197,194,225,194,208,201,229,226,311,308,299,296,318,289,286,293,380,381,366,379,704,468,442,454,428,394]} 1. e4 {[%emt 0:00:58]} c5 {[%emt 0:00:16]} 2. Nf3 {[%emt 0:00:07]} e6 {[%emt 0:00:11]} 3. d4 {[%emt 0:00:20]} cxd4 {[%emt 0:00:11]} 4. Nxd4 {[%emt 0:00:05]} Nc6 {[%emt 0:00:12]} 5. Nc3 {[%emt 0:00:08]} Qc7 {[%emt 0:00:39]} 6. Be2 {[%emt 0:01:02]} a6 {[%emt 0:01:11]} 7. O-O {[%emt 0:00:19]} Nf6 {[%emt 0:00:18]} 8. Be3 {[%emt 0:00:08][%cal Bc1e3,Be3d4,Bd4e5][%mdl 32]} Bb4 {[%emt 0:00:38]} 9. Na4 {[%emt 0:00:26]} Be7 {[%emt 0:00:18]} 10. Nxc6 {[%emt 0:00:25]} bxc6 {[%emt 0:00:13]} 11. Nb6 {[%emt 0:00:28]} Rb8 {[%emt 0:00:16]} 12. Nxc8 {[%emt 0:00:11]} Qxc8 {[%emt 0:00:09]} 13. Bd4 {[%emt 0:00:07]} c5 {[%emt 0:01:19]} 14. Be5 {[%emt 0:00:11]} Rb6 {[%emt 0:00:42]} 15. Qd3 {[%emt 0:05:27]} d6 {[%emt 0:02:08] B49: Sicilian: Taimanov: 5 Nc3 Qc7 6 Be3 a6 7 Be2.} 16. Bc3 {[%emt 0:00:13]} O-O {[%emt 0:02:01]} 17. b3 {[%emt 0:00:15]} Nd7 {[%emt 0:21:14] White is slightly better.} 18. Rad1 {[%emt 0:07:09]} Bf6 {[%emt 0:16:02][%cal Oc5c4]} 19. Ba5 {[%emt 0:00:57]} Rc6 {[%emt 0:03:01][%cal Oc5c4]} 20. Qg3 {[%emt 0:00:21]} Be7 {[%emt 0:15:29] [#]} 21. Kh1 $146 {[%emt 0:06:17] White is much more active. The black rooks are badly placed.} ({Predecessor:} 21. Bc3 g6 22. f4 c4 23. b4 Qb7 24. f5 e5 25. fxg6 hxg6 26. Bd2 Nf6 27. Qf3 {1-0 (44) Brkic,A (2427)-Braun,A (2455) Zemplinska Sirava 2004}) 21... Nf6 {[%emt 0:02:52]} 22. Bc3 {[%emt 0:02:16] A strong pair of Bishops.} Rd8 {[%emt 0:00:55]} 23. Bc4 {[%emt 0:08:48]} Qc7 {[%emt 0:14:57]} 24. f4 {[%emt 0:04:17][%cal Bf2f4,Bf4f5][%mdl 32]} Ne8 {[%emt 0:05:29]} (24... g6 $16) 25. f5 {[%emt 0:04:59]} e5 {[%emt 0:00:05]} 26. Bd5 {[%emt 0:00:25]} Nf6 {[%emt 0:00:04]} 27. Qf3 {[%emt 0:03:50]} c4 {[%emt 0:01:00]} 28. Bxc6 {[%emt 0:02:53]} ({Don't do} 28. Bxc4 $6 Rxc4 29. bxc4 Qxc4 $16) 28... Qxc6 {[%emt 0:00:03]} 29. Rfe1 {[%emt 0:00:33]} Rc8 {[%emt 0:00:16]} 30. Bd2 {[%emt 0:02:44]} Nd7 {[%emt 0:01:26]} 31. Be3 {[%emt 0:01:25]} a5 {[%emt 0:00:27]} 32. Bf2 {[%emt 0:06:06]} a4 {[%emt 0:04:22]} 33. b4 {[%emt 0:01:05]} c3 {[%emt 0:02:18]} 34. a3 {[%emt 0:00:14]} Bg5 {[%emt 0:00:42]} 35. Be3 {[%emt 0:01:09] Inhibits Bd2.} Be7 {[%emt 0:00:18]} 36. Bc1 {[%emt 0:05:12]} Qc4 {[%emt 0:01:42]} 37. Qd3 {[%emt 0:00:44]} Qa2 {[%emt 0:00:51]} 38. Qa6 {[%emt 0:00:27]} Rd8 {[%emt 0:00:45]} 39. Qxa4 {[%emt 0:00:31]} Nb6 $2 {[%emt 0:00:33] [#]} (39... Kf8 40. Rd3 Qc4) 40. Qa7 {[%emt 0:00:00] White is clearly winning.} Nc8 {[%emt 0:00:00]} 41. Qf2 {[%emt 0:05:22]} f6 {[%emt 0:01:29]} 42. Rd3 {[%emt 0:04:03] Black did not feel at home in the position after the opening.  Weighted Error Value: White=0.14 (very precise) /Black=0.20 (precise)} 1-0